Cogmind - Beta 11.1 *** ADVENTURER MODE // 2022.12.02 @ 22:20:53 Player: DerKer Result: Destroyed by G-34 Mercenary with Small Laser Performance ------------- Evolutions (0) 0 Regions Visited (1) 200 Robots Destroyed (5) 25 Value Destroyed (93) 93 Prototype IDs (2) 40 Alien Tech Used (0) 0 Bonus (0) 0 TOTAL SCORE: 358 Bonus ------- None Cogmind --------- Core Integrity 0/250 Matter 240/300 Energy 350/350 System Corruption 0% Temperature Cool (12) Movement Core (1400) Ox27 Location -10/Materials Parts ------- > --- POWER (1) -------- (None) > --- PROPULSION (2) --- (None) > --- UTILITY (2) ------ Huge Storage Unit High-capacity Battery > --- WEAPON (2) ------- (None) > --- INVENTORY (25) --- Light Ion Engine Huge Storage Unit Sensor Array Signal Interpreter Propulsion Shielding Peak State ------------ > --- POWER ------------ Light Ion Engine > --- PROPULSION ------- Wheel Compact Wheel > --- UTILITY ---------- Small Storage Unit High-capacity Battery > --- WEAPON ----------- Small Laser Assault Rifle > --- INVENTORY -------- Light Ion Engine [Rating: 7] Favorites ----------- Power Light Ion Engine Engine Light Ion Engine Propulsion Compact Wheel Wheel Compact Wheel Utility High-capacity Battery Storage High-capacity Battery Weapon Small Laser Energy Gun Small Laser Ballistic Gun Assault Rifle Build | -11 -10 ------- Run | Scr Mat Slots Evolved . | . . Power . | . . Propulsion . | . . Utility . | . . Weapon . | . . Parts Attached 8 | 6 2 Power 1 | 1 . Engine 1 | 1 . Core . | . . Reactor . | . . Propulsion 2 | 2 . Treads . | . . Leg . | . . Wheel 2 | 2 . Hover . | . . Flight . | . . Utility 3 | 1 2 Device . | . . Storage 3 | 1 2 Processor . | . . Hackware . | . . Protection . | . . Artifact . | . . Weapon 2 | 2 . Energy Gun 1 | 1 . Energy Cannon . | . . Ballistic Gun 1 | 1 . Ballistic Cannon . | . . Launcher . | . . Special Weapon . | . . Impact Weapon . | . . Slashing Weapon . | . . Piercing Weapon . | . . Special Melee Weapon . | . . Unidentified Prototypes . | . . Parts Lost 5 | . 5 Power 1 | . 1 Propulsion 2 | . 2 Utility . | . . Weapon 2 | . 2 Highest Loss Streak 5 | . 5 To Critical Strikes . | . . Average Slot Usage (%) 80 | . 80 Engine 11 | . 11 Wheel 20 | . 20 Storage 25 | . 25 Energy Gun 12 | . 12 Ballistic Gun 10 | . 10 Naked Turns . | . . Heaviest Build 90 | 11 90 Greatest Support 26 | 26 26 Greatest Overweight (x) 29 | . 29 Average Overweight (x) 1 | . 2 Largest Inventory Capacity 25 | 8 25 Average Capacity 18 | 6 21 Most Carried 5 | 5 5 Average Carried 3 | 1 3 Final Capacity 25 | 8 25 Final Carried 5 | 1 5 Class Distribution -------------------- 100% | Mutant Dominant Class ---------------- Mutant | -10/Materials Resources | -11 -10 ----------- Run | Scr Mat Matter Collected 234 | 213 21 Remotely . | . . Salvage Created 113 | . 113 Parts 10 | . 10 Haulers Intercepted . | . . Recyclers Shooed . | . . Parts Field Recycled . | . . Retrieved Matter . | . . Parts Self-Destructed . | . . Prevented . | . . Kills | -11 -10 ------- Run | Scr Mat Combat Hostiles Destroyed 4 | . 4 Guns 4 | . 4 Classes Destroyed 3 | . 3 Watcher 1 | . 1 Swarmer 3 | . 3 Grunt 1 | . 1 Best Kill Streak 2 | . 2 Combat Bots Only 2 | . 2 Max Kills in Single Turn 1 | . 1 Gunslinging . | . . Exploded . | . . Melee . | . . Uniques/NPCs Destroyed . | . . Combat | -11 -10 -------- Run | Scr Mat Damage Taken 684 | . 684 Core 254 | . 254 Absorbed by Shields . | . . Core Remaining (%) 100 | 100 . Volleys Fired 15 | . 15 Largest 2 | . 2 Hottest 60 | . 60 Shots Fired 28 | . 28 Gun 28 | . 28 Cannon . | . . Launcher . | . . Special . | . . Kinetic 13 | . 13 Thermal 15 | . 15 Explosive . | . . Electromagnetic . | . . Robot Hit Streak 8 | . 8 Robot Miss Streak 2 | . 2 Penetration Max . | . . Secondary Targets 2 | . 2 Max Gunslinging Chain 1 | . 1 Shots Hit Robots 18 | . 18 Core Hits 7 | . 7 Critical Kills . | . . Critical Parts Destroyed . | . . Critical Strikes . | . . Melee Attacks . | . . Impact . | . . Slashing . | . . Piercing . | . . Sneak Attacks . | . . Combat Hostiles . | . . Follow-up Attacks . | . . Damage Inflicted 209 | . 209 Guns 209 | . 209 Cannons . | . . Explosions . | . . Melee . | . . Ramming . | . . Kinetic 86 | . 86 Thermal 123 | . 123 Explosive . | . . Electromagnetic . | . . Impact . | . . Slashing . | . . Piercing . | . . Highest Corruption . | . . Average Corruption . | . . Corruption Purged . | . . Corruption Blocked . | . . Overload Shots . | . . Overflow Damage . | . . Projectiles . | . . Explosions . | . . Melee . | . . Knockbacks . | . . Impact . | . . Kinetic . | . . Secondary . | . . Self-Inflicted Damage . | . . Shots . | . . Rammed . | . . Targets Rammed . | . . Kicked . | . . Crushed . | . . Highest Temperature 147 | . 147 Average Temperature 69 | . 69 Received Heat Transfer 432 | . 432 Siege Activations . | . . Robots Corrupted . | . . Combat Hostiles . | . . Parts Fried . | . . Impact Corruptions . | . . Robots Melted . | . . Combat Hostiles . | . . Parts Melted 1 | . 1 Heat Transferred 275 | . 275 Parts Sabotaged . | . . Parts Stolen . | . . Parts Stripped . | . . Power Chain Reactions . | . . Missiles Intercepted . | . . Alert | -11 -10 ------- Run | Scr Mat Peak Influence 97 | . 97 Initial . | . . Average 29 | . 35 Maximum Alert Level . | . . Low Security (%) 100 | 100 100 Level 1 . | . . Level 2 . | . . Level 3 . | . . Level 4 . | . . Level 5 . | . . High Security . | . . Max Security . | . . Squads Dispatched 2 | . 2 Investigation 2 | . 2 Extermination . | . . Reinforcement . | . . Assault . | . . Garrison . | . . Intercept . | . . Searches Triggered . | . . Construction Impeded . | . . Haulers Reinforced . | . . Active Scanning Responses . | . . Cargo Convoy Interrupts . | . . Stealth | -11 -10 --------- Run | Scr Mat Distress Signals 1 | . 1 Communications Jammed . | . . Distress Signals . | . . Times Spotted 9 | . 9 Peak Tracking Total 7 | . 7 Tactical Retreats 1 | . 1 Traps | -11 -10 ------- Run | Scr Mat Traps Triggered . | . . Indirectly . | . . Trap Hack Attempts . | . . Triggered . | . . Disarmed . | . . Reprogrammed . | . . Reused . | . . Traps Extracted . | . . Installed . | . . Triggered . | . . Machines | -11 -10 ---------- Run | Scr Mat Machines Disabled . | . . Max in Single Turn . | . . Machines Sabotaged . | . . Garrisons Compromised . | . . Overloaded Fab Kills . | . . Hacking | -11 -10 --------- Run | Scr Mat Machines Accessed 1 | . 1 Terminals 1 | . 1 Fabricators . | . . Repair Stations . | . . Recycling Units . | . . Scanalyzers . | . . Garrison Access . | . . Total Hacks 4 | . 4 Successful 2 | . 2 Failed 2 | . 2 Catastrophic . | . . Database Lockouts . | . . Manual . | . . Terminals 4 | . 4 Fabricators . | . . Repair Stations . | . . Recycling Units . | . . Scanalyzers . | . . Garrison Access . | . . Terminal Hacks 2 | . 2 Prototype ID Bank 1 | . 1 Dispatch Records 1 | . 1 Fabricator Hacks . | . . Repair Station Hacks . | . . Recycling Unit Hacks . | . . Scanalyzer . | . . Garrison Access Hacks . | . . Unauthorized Hacks . | . . Terminals . | . . Fabricators . | . . Repair Stations . | . . Recycling Units . | . . Scanalyzers . | . . Garrison Access . | . . Data Cores Recovered . | . . Used . | . . Hacking Detections 1 | . 1 Full Trace Events . | . . Feedback Events . | . . Feedback Blocked . | . . Robot Schematics Acquired . | . . Robots Built . | . . Authchips . | . . Time . | . . Total Robot Build Rating . | . . Part Schematics Acquired . | . . Parts Built . | . . Authchips . | . . Time . | . . Total Part Build Rating . | . . Parts Repaired . | . . Time . | . . Parts Recycled . | . . Recycled Matter . | . . Retrieved Matter . | . . Retrieved Components . | . . Parts Scanalyzed . | . . Part Schematics Acquired . | . . Parts Damaged . | . . Bothacking | -11 -10 ------------ Run | Scr Mat Used RIF Installer . | . . Robots Hacked . | . . Non-combat . | . . Combat . | . . Robot Hacks Applied . | . . Relay Couplers Released . | . . Fabnet Peak Effective % . | . . Robots Rewired . | . . Allies Hacked . | . . Hacks Repelled . | . . Allies | -11 -10 -------- Run | Scr Mat Total Allies . | . . Largest Group . | . . Highest-Rated Group . | . . Highest-Rated Ally . | . . Total Orders . | . . Ally Attacks . | . . Total Damage . | . . Kills . | . . Allies Corrupted . | . . Allies Melted . | . . Intel | -11 -10 ------- Run | Scr Mat Robot Analysis Total . | . . Derelict Logs Recovered . | . . Drone Launches . | . . Drone Recoveries . | . . Exploration | -11 -10 ------------- Run | Scr Mat Turns Passed 289 | 47 242 Spaces Moved 176 | 47 129 Core 24 | 20 4 Treads . | . . Legs . | . . Wheels 152 | 27 125 Hover . | . . Flight . | . . Fastest Speed 50 | 50 90 Average Speed 133 | 72 155 Slowest Speed 1500 | 90 1500 Overloaded Moves . | . . Propulsion Burnouts . | . . Robots Hopped . | . . Cave-ins Triggered . | . . Exploration Rate (%) 12 | 3 22 Regions Visited 1 Branch Regions . Pre-discovered Areas . | . . Known Exits Taken . | . . Unknown Exits Taken 1 | 1 . Scrap Searched . | . . Spaces Dug . | . . Terrain Destroyed . | . . Melee . | . . Projectile . | . . AOE . | . . Terrain Rammed . | . . Walls Destroyed . | . . Machines Disabled . | . . Actions | -11 -10 --------- Run | Scr Mat Total 213 | 59 154 Wait 1 | . 1 Move 175 | 46 129 Hop . | . . Pick Up 13 | 7 6 Fast Attach . | . . Attach 7 | 6 1 Detach . | . . Swap 1 | . 1 Drop 1 | . 1 Fire 15 | . 15 Melee . | . . Ram . | . . Kick . | . . Crush . | . . Escape Stasis . | . . Rewire . | . . Trap . | . . Miscellaneous . | . . Route ------- -11/Scrapyard -10/Materials History --------- Turn | Location | Event 11 | -11/Scrapyard | Discovered new exit (range 15) 48 | -11/Scrapyard | Entered Materials 261 | -10/Materials | Core integrity fell below 50% 281 | -10/Materials | Core integrity fell below 20% 290 | -10/Materials | Destroyed by G-34 Mercenary with Small Laser Last Messages --------------- 00223_ Flight Unit melted. 00223_ S-10 Pest destroyed. 00223_ Switching to secondary target: G-47 Trooper. 00225_ Com. Wheel destroyed. 00227_ K-01 Serf collects debris. 00239_ Assault Rifle destroyed. 00239_ K-01 Serf collects debris. 00243_ G-47 Trooper destroyed. 00245_ K-01 Serf collects debris. 00247_ Lgt. Ion Engine destroyed. 00248_ R-06 Scavenger collects Flight Unit. 00248_ K-01 Serf collects debris. 00251_ R-06 Scavenger collects Lgt. Ion Engine. 00251_ K-01 Serf collects debris. 00254_ R-06 Scavenger collects Flight Unit. 00266_ Sml. Laser destroyed. 00280_ R-06 Scavenger collects Lgt. Assault Rifle. 00280_ K-01 Serf cleans the Recycling Unit. 00282_ K-01 Serf collects debris. 00288_ K-01 Serf destroyed. Map ----- +----------------------------------------------------+ | ?????????????????????????????????????????????????? | | ?????????????????????????????????????????????????? | | ?????????????????????????????????????????????????? | | ?????????????????????????????????????????????????? | | ?????????????????????????????????????????????????? | | ?????????????????????????????????????????????????? | | ?????????????????????????????????????????????????? | | ?????????????????????????????????????????????????? | | ???? ????????????????????????????????????????????? | | ???? #????????????????? ??????????????????????? | | ???? #????????????????? /?????????????????????? | | #### #????????????????? #?????????????????????? | | # +????????????????? #?????????????????????? | | # #?????????????????# #?????????????????????? | | # #?????????????????# #?????????????????????? | | # #?????????????????# #?????????????????????? | | # #?????????????????# #?????????????????????? | | # #?????????????????+ #?????????????????????? | | # #?????????????????# #?????????????????????? | | # #?????????????????# #?????????????????????? | | # #?????????????????# #?????????????????????? | | # #?????#######?????# #?????????????????????? | | # #?????# ####### ########??????????????? | | # ####### gg # #??????????????? | | # ! r %=% %+%""" #??????????????? | | # ########## %*@ #="Y" + ????????????? | | # #????????# = ###+####### # ?????????????? | | # #?######### = ### #????? ! #??????????????? | | #+### # #?# #????? #??????????????? | | # # # #?# #??????#####??????????????? | | # # + #?# #?????????????????????????? | | # # ! # #?# #?????????????????????????? | | # # # #?# #?????????????????????????? | | # ######### #?# #?????????????????????????? | | # #??????###+#### #?????????????????????????? | | # ######## # #?????????????????????????? | | ##+## ##""" ######?????????????????????????? | | ##""" #??????????????????????????????? | | ##""" #??????????????????????????????? | | ##""" #??????????????????????????????? | | ## ## ##""" #??????????????????????????????? | | ##+### ### #??????????????????????????????? | | # #?#""" #??????????????????????????????? | | + #?#""" #??????????????????????????????? | | # #?#""" #??????????????????????????????? | | "" # #?#""" #??????????????????????????????? | | T" #####?#""" #??????????????????????????????? | | "" #?????? #??????????????????????????????? | | #??????#######??????????????????????????????? | | ######???????????????????????????????????????????? | +----------------------------------------------------+ Best States ------------- Heat Dissipation 25 Energy Generation 10 Energy Capacity 375 Matter Stores 253 Matter Capacity 300 Sight Range 16 Terrain Scan Density 10 Resistance: KI 20 Resistance: TH 20 Resistance: EX 20 Resistance: EM 20 Resistance: I 20 Resistance: S 20 Resistance: P 20 Evasion (%) 50 Offensive Hacking 10 Item Schematics ----------------- None Robot Schematics ------------------ None Fabricated ------------ Nothing Alien Tech Used ----------------- None Achievements -------------- None Challenges ------------ None Game ------ Seed ArmoredCoolantAutohacker Manual? 0 Play Time 00:05:57 Cumulative 4.7 hours Start 2022.08.14 @ 17:36:40 End 2022.12.02 @ 22:20:53 Sessions 2 Manual Loads 0 Difficulty Adventurer Special Mode None Game No. 11 Rogue 0 Adventurer 11 Explorer 0 Win Type - Total 0 Types 0/0/0/0/0/0/0/0/0 Lore% 4 Gallery% 10 Achievement% 10 Wizard Run 0 Options --------- ASCII 0 Keyboard 0 Movement Mouse Keybinds 0 Fullscreen 1 Font 18/X11Bold Map View 76x50 Tactical HUD 1 Map Filters NONE Filters NONE Steam 1 RUN: 367bed15-c425-44d7-a13a-3a3ffe2212b8